bitfinex/quotes_BTCUSD_20251019
["timestamp","ask_amount","ask_price","bid_price","bid_amount"]
[1760873311117,3.41447455,108050.0,108040.0,0.66493403]
[1760873312057,3.41447455,108050.0,108040.0,0.6045592]
[1760873316944,3.39720017,108050.0,108040.0,0.6045592]
[1760873318388,3.41444879,108050.0,108040.0,0.6045592]
[1760873319560,3.39444879,108050.0,108040.0,0.6045592]
[1760873330889,3.39444879,108050.0,108040.0,0.51014832]
[1760873331096,3.39444879,108050.0,108040.0,0.60358832]
[1760873331927,3.39444879,108050.0,108040.0,0.51014832]
[1760873332133,3.39444879,108050.0,108040.0,0.60358832]
[1760873334699,3.39444879,108050.0,108040.0,0.51014832]
[1760873335162,3.39444879,108050.0,108040.0,0.60358832]
[1760873335809,3.39444879,108050.0,108040.0,0.59358833]
[1760873336013,3.39444879,108050.0,108040.0,0.60358832]
[1760873337866,3.39444879,108050.0,108040.0,0.59358833]
[1760873338029,3.39444879,108050.0,108040.0,0.60358832]
[1760873340714,3.39454243,108050.0,108040.0,0.60358832]
[1760873342705,3.39454243,108050.0,108040.0,0.51014832]
[1760873342871,3.39454243,108050.0,108040.0,0.60354832]
[1760873344847,3.39454243,108050.0,108040.0,0.59354833]
[1760873345051,3.39454243,108050.0,108040.0,0.58033477]
[1760873346136,3.39458243,108050.0,108040.0,0.58033477]
[1760873347037,3.43076471,108050.0,108040.0,0.48693477]
[1760873347994,3.43176471,108050.0,108040.0,0.48693477]
[1760873348805,3.43176471,108050.0,108040.0,0.40253477]
[1760873349028,3.43174121,108050.0,108040.0,0.40253477]
[1760873349232,3.45958745,108050.0,108040.0,0.40253477]
[1760873349437,3.45958745,108050.0,108040.0,0.36793477]
[1760873350042,3.45958745,108050.0,108040.0,0.29113477]
[1760873350287,3.47571744,108050.0,108040.0,0.29113477]
[1760873350495,3.47571744,108050.0,108040.0,0.22843477]
[1760873351898,3.47571744,108050.0,108040.0,0.21303477]
[1760873352464,3.47515737,108050.0,108040.0,0.21303477]
[1760873354436,3.47515737,108050.0,108040.0,0.19303477]
[1760873355125,3.47515737,108050.0,108040.0,0.17783477]
[1760873356498,3.47515737,108050.0,108040.0,0.13243477]
[1760873357109,3.47515737,108050.0,108040.0,0.10953477]
[1760873359014,3.47514535,108050.0,108040.0,0.10953477]
[1760873359861,3.43896307,108050.0,108040.0,0.10953477]
[1760873360399,3.47514535,108050.0,108040.0,0.01023477]
[1760873362556,3.56858535,108050.0,108040.0,0.01023477]
[1760873363340,3.53240307,108050.0,108040.0,0.01023477]
[1760873363754,3.56858535,108050.0,108040.0,0.01023477]
[1760873369208,3.38206244,108050.0,108040.0,0.01023477]
[1760873369759,2.91244016,108050.0,108040.0,0.01023477]
[1760873369964,2.88459392,108050.0,108040.0,0.01023477]
[1760873370217,2.87007715,108050.0,108040.0,0.01023477]
[1760873370382,3.21007715,108050.0,108040.0,0.01023477]
[1760873370796,3.20846393,108050.0,108040.0,0.02023476]
[1760873373051,3.20746393,108050.0,108040.0,0.02023476]
[1760873373330,3.20846393,108050.0,108040.0,0.02023476]
[1760873373914,3.20746393,108050.0,108040.0,0.02023476]
[1760873376793,2.86746393,108050.0,108040.0,0.02023476]
[1760873377307,3.20746393,108050.0,108040.0,0.02023476]
[1760873389811,3.20907694,108050.0,108040.0,0.02023476]
[1760873391194,3.01913746,108050.0,108040.0,0.02023476]
[1760873399665,3.01752445,108050.0,108040.0,0.02023476]
[1760873402193,3.01758524,108050.0,108040.0,0.02023476]
[1760873411053,2.67758524,108050.0,108040.0,0.02023476]
[1760873411808,3.01758524,108050.0,108040.0,0.02023476]
[1760873415858,3.01758524,108050.0,108040.0,0.02550641]
[1760873416590,3.01758524,108050.0,108040.0,0.02023476]
[1760873416813,3.01758524,108050.0,108040.0,0.11359476]
[1760873428395,2.82530295,108050.0,108040.0,0.11359476]
[1760873436846,2.82530295,108050.0,108040.0,0.20800564]
[1760873437244,2.80793542,108050.0,108040.0,0.23583754]
[1760873437569,2.82529917,108050.0,108040.0,0.25942129]
[1760873439779,2.48529917,108050.0,108040.0,0.25942129]
[1760873439996,2.80793542,108050.0,108040.0,0.25942129]
[1760873440800,0.37724017,108050.0,108040.0,0.25942129]
[1760873442164,0.37724017,108050.0,108040.0,0.29560357]
[1760873443456,0.19700931,108050.0,108040.0,0.29560357]
[1760873443609,3.0,108060.0,108040.0,0.29560357]
[1760873443815,3.03721206,108060.0,108050.0,0.09441088]
[1760873444013,3.03721206,108060.0,108050.0,0.12397124]
[1760873446399,3.03721206,108060.0,108050.0,0.12458965]
[1760873446597,3.03721206,108060.0,108050.0,0.12508086]
[1760873449124,3.03721206,108060.0,108050.0,0.12577653]
[1760873452885,3.37721206,108060.0,108050.0,0.12549748]
[1760873459591,3.37721206,108060.0,108050.0,0.13549747]
[1760873459796,3.37721206,108060.0,108050.0,0.25484029]
[1760873460003,3.37721206,108060.0,108050.0,0.22701218]
[1760873460389,3.37721206,108060.0,108050.0,0.13369218]
[1760873460590,3.37721206,108060.0,108050.0,0.19745182]
[1760873461631,3.37721206,108060.0,108050.0,0.10413182]
[1760873461829,3.37721206,108060.0,108050.0,0.19745182]
[1760873463771,3.37721206,108060.0,108050.0,0.10413182]
[1760873463972,3.37721206,108060.0,108050.0,0.10331999]
[1760873464195,3.39456432,108060.0,108050.0,0.10331999]
[1760873467085,3.39456432,108060.0,108050.0,0.11467547]
[1760873468254,3.39456432,108060.0,108050.0,0.10331999]
[1760873469826,3.39457395,108060.0,108050.0,0.10331999]
[1760873470313,3.22368162,108060.0,108050.0,0.10331999]
[1760873476383,3.22368162,108060.0,108050.0,0.00999999]
[1760873476615,3.22368162,108060.0,108050.0,0.10331999]
[1760873481041,3.22368162,108060.0,108050.0,0.09332]
[1760873481250,3.16910767,108050.0,108040.0,0.02023476]
[1760873481402,3.18646956,108050.0,108040.0,0.11355476]
[1760873493193,3.18646956,108050.0,108040.0,5.11355476]
[1760873493781,2.84646956,108050.0,108040.0,5.11355476]
[1760873495745,3.18646956,108050.0,108040.0,5.11355476]
[1760873498527,0.03721206,108060.0,108050.0,0.00999999]
[1760873498729,3.05455753,108060.0,108050.0,0.19881729]
[1760873498930,3.0,108060.0,108050.0,0.19881729]
[1760873499142,3.0,108060.0,108050.0,0.23499957]
[1760873499362,0.00035363,108070.0,108060.0,0.04618227]
[1760873499572,0.00035363,108070.0,108060.0,0.24391314]
[1760873499776,0.00035363,108070.0,108060.0,0.28052768]
[1760873500407,0.00035363,108070.0,108060.0,0.32388768]
[1760873501721,0.00035363,108070.0,108060.0,0.32488768]
[1760873501936,0.00035363,108070.0,108060.0,0.32484768]
[1760873502370,0.00035363,108070.0,108060.0,0.32384768]
[1760873502577,0.00035363,108070.0,108060.0,0.32484768]
[1760873508565,0.00035363,108070.0,108060.0,0.32384768]
[1760873508767,0.00035363,108070.0,108060.0,0.32484768]
[1760873509373,0.00035363,108070.0,108060.0,0.32384768]
[1760873509686,0.00035363,108070.0,108060.0,0.35266433]
[1760873512453,0.03692946,108090.0,108060.0,0.35266433]
[1760873512662,4e-05,108100.0,108090.0,0.05618226]
[1760873512890,4e-05,108100.0,108090.0,0.25989245]
[1760873513101,4e-05,108100.0,108090.0,0.2636011]
[1760873513925,4e-05,108100.0,108090.0,0.2637498]
[1760873514518,0.03753664,108100.0,108090.0,0.2637498]
[1760873514718,4e-05,108100.0,108090.0,0.2637498]
[1760873515119,4e-05,108100.0,108090.0,0.25374981]
[1760873515929,4e-05,108100.0,108090.0,0.25474981]
[1760873517694,0.03720718,108100.0,108090.0,0.25474981]
[1760873517900,4e-05,108100.0,108090.0,0.25474981]
[1760873518054,4e-05,108100.0,108090.0,0.16150981]
[1760873518263,0.00110055,108100.0,108090.0,0.25474981]
[1760873519663,0.03794039,108100.0,108090.0,0.25474981]
[1760873519869,0.00110055,108100.0,108090.0,0.25474981]
[1760873520074,0.00110055,108100.0,108090.0,0.16150981]
[1760873520277,0.00110055,108100.0,108090.0,0.25474981]
[1760873522052,0.03892996,108100.0,108090.0,0.25474981]
[1760873523738,0.03892996,108100.0,108090.0,0.01485734]
[1760873523941,3.39616699,108100.0,108090.0,0.10434869]
[1760873524477,3.39616699,108100.0,108090.0,0.10334869]
[1760873525114,3.39616699,108100.0,108090.0,0.01014869]
[1760873525425,3.39616699,108100.0,108090.0,0.10334869]
[1760873525643,3.39616699,108100.0,108090.0,0.01014869]
[1760873525841,3.39616699,108100.0,108090.0,0.10334869]
[1760873526055,3.42399174,108100.0,108090.0,0.10334869]
[1760873527410,3.42399174,108100.0,108090.0,0.09732498]
[1760873528043,3.42560389,108100.0,108090.0,0.09732498]
[1760873529474,3.39777914,108100.0,108090.0,0.09732498]
[1760873529945,3.05616699,108100.0,108090.0,0.09732498]
[1760873530139,3.05616699,108100.0,108090.0,0.19173586]
[1760873530341,0.05616699,108100.0,108090.0,0.19173586]
[1760873530778,0.05616699,108100.0,108090.0,0.22791814]
[1760873530980,0.05616699,108100.0,108090.0,0.22891814]
[1760873531289,0.05616699,108100.0,108090.0,0.25280995]
[1760873531453,0.05616699,108100.0,108090.0,0.25180995]
[1760873531832,0.05616699,108100.0,108090.0,0.25280995]
[1760873532242,0.03892996,108100.0,108090.0,0.25280995]
[1760873532471,0.05623645,108100.0,108090.0,0.25280995]
[1760873533616,0.36821619,108160.0,108130.0,0.00999999]
[1760873533617,3.0,108160.0,108130.0,0.00999999]
[1760873533815,3.0,108150.0,108140.0,0.00999999]
[1760873534766,3.00049602,108150.0,108140.0,0.00999999]
[1760873535613,3.34149602,108150.0,108140.0,0.00999999]
[1760873536947,3.34310773,108150.0,108140.0,0.00999999]
[1760873537352,3.00310773,108150.0,108140.0,0.00999999]
[1760873537734,3.00149602,108150.0,108140.0,0.00999999]
[1760873538181,3.34149602,108150.0,108140.0,0.00999999]
[1760873538813,3.34049602,108150.0,108140.0,0.00999999]
[1760873539258,3.00226253,108150.0,108140.0,0.01081692]
[1760873539460,3.34226253,108150.0,108140.0,0.02121861]
[1760873539676,3.00226253,108150.0,108140.0,0.11562949]
[1760873540058,3.34226253,108150.0,108140.0,0.11562949]
[1760873540426,3.34226253,108150.0,108140.0,0.15181177]
[1760873540966,3.00226253,108150.0,108140.0,0.15181177]
[1760873541166,0.00226253,108150.0,108140.0,0.15181177]
[1760873541366,0.00226253,108150.0,108140.0,0.16181176]
[1760873542407,0.00226253,108150.0,108140.0,0.15199484]
[1760873542592,0.00226253,108150.0,108140.0,0.16199483]
[1760873543007,0.00226253,108150.0,108140.0,0.15199484]
[1760873543418,0.00226253,108150.0,108140.0,0.16199483]
[1760873543957,0.00226253,108150.0,108140.0,0.12581255]
[1760873544156,0.00226253,108150.0,108140.0,0.16199483]
[1760873544361,0.00226253,108150.0,108140.0,0.15199484]
[1760873544747,0.00226253,108150.0,108140.0,0.16199483]
[1760873545859,0.01948962,108150.0,108140.0,0.23479315]
[1760873549700,0.01948962,108150.0,108140.0,0.23475315]
[1760873552057,0.00226253,108150.0,108140.0,0.23475315]
[1760873552670,0.00226253,108150.0,108140.0,0.33239315]
[1760873552892,0.00226253,108150.0,108140.0,0.25475314]
[1760873553108,0.00226253,108150.0,108140.0,0.2839349]
[1760873563818,0.37618228,108240.0,108140.0,0.2839349]
[1760873564056,0.34,108200.0,108160.0,0.03618228]
[1760873564276,0.34,108200.0,108170.0,0.17782177]
[1760873564277,3.34,108180.0,108170.0,0.17782177]
[1760873564489,3.35725892,108180.0,108170.0,0.17782177]
[1760873564730,3.35725892,108180.0,108170.0,0.19922218]
[1760873564932,3.35831831,108180.0,108170.0,0.19922218]
[1760873570551,3.3965286,108180.0,108170.0,0.19922218]
[1760873571790,3.39658329,108180.0,108170.0,0.19922218]
[1760873576229,3.0,108170.0,108160.0,0.00999999]
[1760873576362,3.01731361,108170.0,108160.0,0.19753087]
[1760873577471,3.35731361,108170.0,108160.0,0.09441088]
[1760873577617,3.35731361,108170.0,108160.0,0.19753087]
[1760873577815,3.35731361,108170.0,108160.0,0.10311999]
[1760873578237,3.35731361,108170.0,108160.0,0.09412]
[1760873578515,3.35731361,108170.0,108160.0,0.10411999]
[1760873578789,3.35731361,108170.0,108160.0,0.01099999]
[1760873578945,3.35731361,108170.0,108160.0,0.10411999]
[1760873579878,3.35731361,108170.0,108160.0,0.00999999]
[1760873580114,3.35731361,108170.0,108160.0,0.10311999]
[1760873581505,3.35731361,108170.0,108160.0,0.00999999]
[1760873581708,3.0,108150.0,108140.0,0.00014836]
[1760873581909,3.01731361,108150.0,108140.0,0.01014835]
[1760873582113,3.01731361,108150.0,108140.0,0.02710835]
[1760873583529,3.01731361,108150.0,108140.0,0.02810835]
[1760873588020,3.35731361,108150.0,108140.0,0.12251923]
[1760873588244,3.35731361,108150.0,108140.0,0.13477115]
[1760873588452,3.34,108150.0,108140.0,0.13477115]
[1760873588868,0.34,108150.0,108140.0,0.13477115]
[1760873590327,0.34,108150.0,108140.0,0.17095343]
[1760873591028,0.34,108150.0,108140.0,0.16095344]
[1760873591294,0.34,108150.0,108140.0,0.21097115]
[1760873591500,3.34,108150.0,108140.0,0.19871923]
[1760873594350,3.34,108150.0,108140.0,0.10555923]
[1760873594525,3.34,108150.0,108140.0,0.19871923]
[1760873597778,0.34,108150.0,108140.0,0.19871923]
[1760873597930,0.34,108150.0,108140.0,0.21859115]
[1760873602931,0.34,108150.0,108140.0,0.25477343]
[1760873616350,0.34,108150.0,108140.0,0.16161343]
[1760873616529,0.34,108150.0,108140.0,0.25473343]
[1760873618683,0.00035321,108160.0,108140.0,0.25473343]
[1760873618918,0.00035321,108160.0,108150.0,0.09441088]
[1760873619122,3.01770822,108160.0,108150.0,0.11988422]
[1760873619959,2.81935032,108160.0,108150.0,0.21300422]
[1760873620199,3.01735501,108160.0,108150.0,0.19753087]
[1760873620401,3.01735501,108160.0,108150.0,0.10441087]
[1760873620609,3.01735501,108160.0,108150.0,0.19753087]
[1760873621783,3.01735501,108160.0,108150.0,0.10311999]
[1760873624625,3.35735501,108160.0,108150.0,0.10311999]
[1760873629379,3.35734887,108160.0,108150.0,0.10311999]
[1760873629513,3.35734887,108160.0,108150.0,0.11344682]
[1760873630520,3.35734887,108160.0,108150.0,0.10311999]
[1760873637141,0.34,108150.0,108140.0,0.01014835]
[1760873637351,3.35734663,108150.0,108140.0,0.10326835]
[1760873638809,3.35734663,108150.0,108140.0,0.10426835]
[1760873640269,3.35734663,108150.0,108140.0,0.09426836]
[1760873640497,3.35734663,108150.0,108140.0,0.10426835]
[1760873641991,3.35734663,108150.0,108140.0,0.11469518]
[1760873642224,3.35734663,108150.0,108140.0,0.10426835]
[1760873642429,3.34,108150.0,108140.0,0.10426835]
[1760873642629,3.35733833,108150.0,108140.0,0.10426835]
[1760873647339,3.35733346,108150.0,108140.0,0.10426835]
[1760873648727,3.35733346,108150.0,108140.0,0.11469518]
[1760873650270,3.0,108150.0,108140.0,0.10426835]
[1760873650522,3.34,108160.0,108150.0,0.00999999]
[1760873650738,3.0,108160.0,108150.0,0.00999999]
[1760873651153,3.0,108170.0,108160.0,0.00999999]
[1760873651447,3.35732921,108170.0,108160.0,0.10311999]
[1760873651689,3.01768235,108170.0,108160.0,0.10311999]
[1760873651817,3.35768235,108170.0,108160.0,0.10311999]
[1760873652047,3.35768235,108170.0,108160.0,0.11343199]
[1760873653073,3.01768235,108170.0,108160.0,0.10311999]
[1760873653290,3.00035314,108170.0,108160.0,0.10311999]
[1760873653499,3.34035314,108170.0,108160.0,0.19753087]
[1760873658131,3.34035314,108170.0,108160.0,0.10311999]
[1760873658764,3.34035314,108170.0,108160.0,0.00999999]
[1760873658965,3.34035314,108170.0,108160.0,0.10311999]
[1760873661036,3.34035314,108170.0,108160.0,0.00999999]
[1760873661199,3.35766775,108170.0,108160.0,0.00999999]
[1760873661544,3.35766775,108170.0,108160.0,0.08375999]
[1760873661700,3.35766775,108170.0,108160.0,0.10311999]
[1760873664284,3.0,108150.0,108140.0,0.01014835]
[1760873664851,3.0,108150.0,108140.0,0.10326835]
[1760873665338,3.01731709,108150.0,108140.0,0.10326835]
[1760873666407,3.01731709,108150.0,108140.0,0.10426835]
[1760873673648,3.01731709,108150.0,108140.0,0.11469518]
[1760873673858,3.01731709,108150.0,108140.0,0.10426835]
[1760873677352,3.0,108150.0,108140.0,0.10426835]
[1760873680016,3.0,108150.0,108140.0,0.01114835]
[1760873680225,3.0,108150.0,108140.0,0.10426835]
[1760873682529,3.01730613,108150.0,108140.0,0.10426835]
[1760873689024,3.01730613,108150.0,108140.0,0.11469518]
[1760873689527,3.01730613,108150.0,108140.0,0.10426835]
[1760873700318,2.81294806,108150.0,108140.0,0.10426835]
[1760873701779,2.62174584,108150.0,108140.0,0.10426835]
[1760873717611,2.62174584,108150.0,108140.0,0.10422835]
[1760873718874,2.9895595,108150.0,108140.0,0.10422835]
[1760873719100,2.99117082,108150.0,108140.0,0.10422835]
[1760873719416,2.99117082,108150.0,108140.0,0.10322835]
[1760873719997,2.99122062,108150.0,108140.0,0.10322835]
[1760873720208,2.99122062,108150.0,108140.0,0.10422835]
[1760873723320,2.9896093,108150.0,108140.0,0.10422835]
[1760873723523,2.97225337,108150.0,108140.0,0.10422835]
[1760873723750,2.98959659,108150.0,108140.0,0.10422835]
[1760873726368,2.99120796,108150.0,108140.0,0.10422835]
[1760873728441,2.60443971,108130.0,108120.0,0.09308]
[1760873728646,2.60443971,108110.0,108100.0,0.06399594]
[1760873728832,2.78943647,108110.0,108100.0,0.25198284]
[1760873731687,2.78943647,108110.0,108100.0,0.25398284]
[1760873740023,2.78943647,108110.0,108100.0,0.21780056]
[1760873740995,2.78943647,108110.0,108100.0,0.21580056]
[1760873741192,2.78943647,108110.0,108100.0,0.21680056]
[1760873744362,0.18499676,108110.0,108100.0,0.21680056]
[1760873746723,0.18499676,108110.0,108100.0,0.12238968]
[1760873746916,0.18499676,108110.0,108100.0,0.09457602]
[1760873747681,0.18499676,108110.0,108100.0,0.09357602]
[1760873747881,0.18499676,108110.0,108100.0,0.09457602]
[1760873748510,0.18499676,108110.0,108100.0,0.09357602]
[1760873748702,0.18499676,108110.0,108100.0,0.09457602]
[1760873752684,0.18499676,108110.0,108100.0,0.2016437]
[1760873753432,0.18499676,108110.0,108100.0,0.22945875]
[1760873754072,0.18499676,108110.0,108100.0,0.21680195]
[1760873762098,0.18499676,108110.0,108100.0,0.25298423]
[1760873774071,0.18499676,108110.0,108100.0,0.12372195]
[1760873774190,0.18499676,108110.0,108100.0,0.1889469]
[1760873774391,0.18499676,108110.0,108100.0,0.00149602]
[1760873774651,0.18499676,108110.0,108100.0,0.09453602]
[1760873774884,0.52499676,108110.0,108100.0,0.09453602]
[1760873775089,0.54235079,108110.0,108100.0,0.09453602]
[1760873775301,0.54235079,108110.0,108100.0,0.09353602]
[1760873775724,0.54235079,108110.0,108100.0,0.09453602]
[1760873776097,0.54235079,108110.0,108100.0,0.09353602]
[1760873776318,3.54235079,108110.0,108100.0,0.09353602]
[1760873776452,3.54235079,108110.0,108100.0,0.09453602]
[1760873780455,3.01735403,108110.0,108100.0,0.10427592]
[1760873780682,0.18499676,108110.0,108100.0,0.1986868]
[1760873780903,0.18499676,108110.0,108100.0,0.26268429]
[1760873781122,0.18499425,108120.0,108110.0,0.03618228]
[1760873781335,0.18499425,108120.0,108110.0,0.13059316]
[1760873781544,0.19423883,108130.0,108110.0,0.36135974]
[1760873781749,0.19423883,108130.0,108120.0,0.22367316]
[1760873784579,0.19423883,108130.0,108120.0,0.25148202]
[1760873784796,0.19423883,108130.0,108120.0,0.25248202]
[1760873794611,0.18498425,108140.0,108130.0,0.03618228]
[1760873794814,0.18494544,108140.0,108130.0,0.3629201]
[1760873795017,0.28670524,108150.0,108130.0,0.3629201]
[1760873795223,0.28670524,108150.0,108140.0,0.22363316]
[1760873795430,0.28570524,108150.0,108140.0,0.22363316]
[1760873796405,0.28570524,108150.0,108140.0,0.22378172]
[1760873796611,0.28570524,108150.0,108140.0,0.25367677]
[1760873797368,0.28570524,108150.0,108140.0,0.2814804]
[1760873798605,0.28570524,108150.0,108140.0,0.2824804]
[1760873806225,0.19423627,108160.0,108150.0,0.03618228]
[1760873806424,0.19423627,108160.0,108150.0,0.17833574]
[1760873806992,0.19423627,108160.0,108150.0,0.20613579]
[1760873807499,0.19423627,108160.0,108150.0,0.20713579]
[1760873811744,0.19423627,108160.0,108150.0,0.21621093]
[1760873811985,0.19423627,108160.0,108150.0,0.12321093]
[1760873812191,0.19423627,108160.0,108150.0,0.18841088]
[1760873812346,0.21153413,108160.0,108150.0,0.18841088]
[1760873812911,0.21153413,108160.0,108150.0,0.18741088]
[1760873814264,0.55153413,108160.0,108150.0,0.18741088]
[1760873821699,0.18492834,108150.0,108140.0,0.00014856]
[1760873821907,0.2022262,108150.0,108140.0,0.18755944]
[1760873824755,0.5422262,108150.0,108140.0,0.18755944]
[1760873826383,3.5422262,108150.0,108140.0,0.18755944]
[1760873826737,3.5422262,108150.0,108140.0,0.09314856]
[1760873828719,0.18497965,108120.0,108110.0,0.02780884]
[1760873828921,0.18497965,108120.0,108110.0,0.0949069]
[1760873829140,0.20230863,108120.0,108110.0,0.00049602]
[1760873829370,0.22602295,108120.0,108110.0,0.09349602]
[1760873829618,3.22602295,108120.0,108110.0,0.09349602]
[1760873829821,3.52501387,108100.0,108090.0,0.03067949]
[1760873830168,3.54234285,108100.0,108090.0,0.00301172]
[1760873830583,0.20234285,108100.0,108090.0,0.0974226]
[1760873830793,3.0,108110.0,108090.0,0.22240169]
[1760873831018,3.34,108110.0,108100.0,0.09441088]
[1760873831221,0.34,108110.0,108100.0,0.09507913]
[1760873832735,0.34,108110.0,108100.0,0.09607913]
[1760873838977,0.34,108110.0,108100.0,0.09541088]
[1760873840802,3.34,108110.0,108100.0,0.09541088]
[1760873841530,3.34,108110.0,108100.0,0.001]
[1760873842159,3.35726686,108110.0,108100.0,0.001]
[1760873842373,3.34,108100.0,108090.0,0.00301172]
[1760873848157,3.35727101,108100.0,108090.0,0.00301172]
[1760873864404,3.35727101,108100.0,108090.0,0.04531172]
[1760873868829,3.20356196,108100.0,108090.0,0.04531172]
[1760873870530,3.00739759,108100.0,108090.0,0.04531172]
[1760873875022,3.34739759,108100.0,108090.0,0.04531172]
[1760873876181,3.00739759,108100.0,108090.0,0.05079296]
[1760873876616,3.00739759,108100.0,108090.0,0.04531172]
[1760873878264,3.34739759,108100.0,108090.0,0.04531172]
[1760873884639,0.35727101,108100.0,108090.0,0.1397226]
[1760873887108,0.35727101,108100.0,108090.0,0.2327626]
[1760873887290,3.0,108110.0,108090.0,0.2327626]
[1760873887526,0.01734637,108110.0,108090.0,0.25698893]
[1760873890548,3.0,108100.0,108090.0,0.25698893]
[1760873890763,3.0,108100.0,108090.0,0.2327626]
[1760873890977,3.0,108110.0,108090.0,0.2327626]
[1760873891200,3.0,108100.0,108090.0,0.2327626]
[1760873891429,3.0,108110.0,108090.0,0.2327626]
[1760873892070,3.0,108110.0,108090.0,0.2337626]
[1760873892295,3.0,108110.0,108090.0,0.25808893]
[1760873892471,3.0,108110.0,108090.0,0.25708893]
[1760873895067,0.34,108110.0,108100.0,0.09441088]
[1760873900735,0.52499676,108110.0,108100.0,0.09441088]
[1760873901749,0.52499676,108110.0,108100.0,0.13059316]
[1760873901947,0.52499676,108110.0,108100.0,0.17842337]
[1760873903411,0.52499676,108110.0,108100.0,0.18170532]
[1760873904283,0.52499676,108110.0,108100.0,0.18270532]
[1760873905347,0.18499676,108110.0,108100.0,0.18270532]
[1760873913631,0.19477308,108120.0,108100.0,0.18270532]
[1760873913788,0.53477308,108120.0,108110.0,0.093]
[1760873914000,0.53477308,108120.0,108110.0,0.21498141]
[1760873918064,0.53477308,108120.0,108110.0,0.18741088]
[1760873923006,0.51358065,108120.0,108110.0,0.18741088]
[1760873923919,0.51358065,108120.0,108110.0,0.22359316]
[1760873924149,0.17358065,108120.0,108110.0,0.40858992]
[1760873924356,0.17358065,108120.0,108110.0,0.28773626]
[1760873926354,0.17358065,108120.0,108110.0,0.28873626]
[1760873926614,0.17358065,108120.0,108110.0,0.22459316]
[1760873932583,0.17478065,108120.0,108110.0,0.22459316]
[1760873939012,0.17608065,108120.0,108110.0,0.22459316]
[1760873946296,0.51608065,108120.0,108110.0,0.22459316]
[1760873949176,0.51608065,108120.0,108110.0,0.18841088]
[1760873949353,0.53343153,108120.0,108110.0,0.18841088]
[1760873949619,0.53343165,108120.0,108110.0,0.18841088]
[1760873950186,0.51608065,108120.0,108110.0,0.18841088]
[1760873950412,0.53343102,108120.0,108110.0,0.18841088]
[1760873950744,0.53343102,108120.0,108110.0,0.094]
[1760873951406,0.53343035,108120.0,108110.0,0.094]
[1760873953415,0.53343035,108120.0,108110.0,0.18841088]
[1760873953610,0.51608065,108120.0,108110.0,0.18841088]
[1760873953808,0.51608065,108120.0,108110.0,0.21003345]
[1760873954226,0.51608065,108120.0,108110.0,0.23784647]
[1760873955844,0.36015983,108120.0,108110.0,0.23784647]
[1760873956045,0.23499424,108120.0,108110.0,0.23784647]
[1760873957690,0.23499424,108120.0,108110.0,0.27402875]
[1760873962852,0.23499424,108120.0,108110.0,0.45902551]
[1760873963074,0.05,108120.0,108110.0,0.45902551]
[1760873963502,0.23497965,108120.0,108110.0,0.45902551]
[1760873964780,0.05,108120.0,108110.0,0.45902551]
[1760873967548,0.05,108120.0,108110.0,0.60632551]
[1760873969543,0.05,108120.0,108110.0,0.6163255]
[1760873972405,0.05,108120.0,108110.0,0.4690255]
[1760873972637,0.05,108120.0,108110.0,0.6163255]
[1760873972836,0.05,108120.0,108110.0,0.62632549]
[1760873974057,0.23497965,108120.0,108110.0,0.47714323]
[1760873974279,0.23497965,108120.0,108110.0,0.38510647]
[1760873974499,0.23497965,108120.0,108110.0,0.1232239]
[1760873974707,0.23497965,108120.0,108110.0,0.2161839]
[1760873974909,0.57497965,108120.0,108110.0,0.1232239]
[1760873975041,0.57497965,108120.0,108110.0,0.2161839]
[1760873976111,0.57497965,108120.0,108110.0,0.02881302]
[1760873976328,3.57497965,108120.0,108110.0,0.02881302]
[1760873976534,3.59229878,108120.0,108110.0,0.02781302]
[1760873976709,0.52499676,108110.0,108100.0,0.09296]
[1760873976888,0.52499676,108110.0,108100.0,0.18737088]
[1760873978774,0.52499676,108110.0,108100.0,0.18837088]
[1760873981938,0.5181352,108110.0,108100.0,0.18837088]
[1760873986278,0.5181352,108110.0,108100.0,0.21618676]
[1760873986679,0.18499676,108110.0,108100.0,0.25236904]
[1760873987576,0.23497965,108120.0,108110.0,0.03618228]
[1760873987774,0.23497965,108120.0,108110.0,0.17794968]
[1760873988209,0.23497965,108120.0,108110.0,0.15840468]
[1760873991703,0.23497965,108120.0,108110.0,0.16100482]
[1760873992709,0.23497965,108120.0,108110.0,0.16418497]
[1760873996214,0.23497965,108120.0,108110.0,0.15840468]
[1760874003484,0.57497965,108120.0,108110.0,0.1222224]
[1760874007624,3.59231518,108120.0,108110.0,0.18737088]
[1760874008808,3.59231518,108120.0,108110.0,0.09441088]
[1760874017642,0.52499676,108110.0,108100.0,0.09296]
[1760874017851,0.52499676,108110.0,108100.0,0.18737088]
[1760874018045,3.52499676,108110.0,108100.0,0.09441088]
[1760874018369,3.52499676,108110.0,108100.0,0.18737088]
[1760874018774,3.52499676,108110.0,108100.0,0.09296]
[1760874019141,3.52499676,108110.0,108100.0,0.09396]
[1760874019336,3.52499676,108110.0,108100.0,0.001]
[1760874019603,3.54233747,108110.0,108100.0,0.001]
[1760874020209,0.52501387,108100.0,108090.0,0.174454]
[1760874020375,0.52501387,108100.0,108090.0,0.26886488]
[1760874022283,0.52501387,108100.0,108090.0,0.26986488]
[1760874022745,0.54172641,108100.0,108090.0,0.26986488]
[1760874023894,0.35671254,108100.0,108090.0,0.26986488]
[1760874024098,0.54172641,108100.0,108090.0,0.26986488]
[1760874044518,0.20172641,108100.0,108090.0,0.26986488]
[1760874045351,0.20172641,108100.0,108090.0,0.29780144]
[1760874047178,0.21908953,108100.0,108090.0,0.29780144]
[1760874047421,0.21908953,108100.0,108090.0,0.26986488]
[1760874048873,0.20237699,108100.0,108090.0,0.26986488]
[1760874052429,0.20237699,108100.0,108090.0,0.2336826]
[1760874053438,0.20237699,108100.0,108090.0,0.2326826]
[1760874055210,0.54237699,108100.0,108090.0,0.2326826]
[1760874059008,3.54237699,108100.0,108090.0,0.1397226]
[1760874060501,3.54237699,108100.0,108090.0,0.04531172]
[1760874066283,0.20237699,108100.0,108090.0,0.1397226]
[1760874068601,0.20237699,108100.0,108090.0,0.14149815]
[1760874071468,0.20237699,108100.0,108090.0,0.16931607]
[1760874074461,0.20237699,108100.0,108090.0,0.17024355]
[1760874077307,0.20237699,108100.0,108090.0,0.16754052]
[1760874079306,0.20237699,108100.0,108090.0,0.20527828]
[1760874080735,0.20237699,108100.0,108090.0,0.16754052]
[1760874086493,0.20237699,108100.0,108090.0,0.17025088]
[1760874087052,0.19632618,108100.0,108090.0,0.17025088]
[1760874094255,0.18501387,108100.0,108090.0,0.17025088]
[1760874094453,0.18501387,108100.0,108090.0,0.20643316]
[1760874094650,0.18501387,108100.0,108090.0,0.24934219]
[1760874094830,0.18501387,108100.0,108090.0,0.3510228]
[1760874097499,0.1862073,108110.0,108090.0,0.3510228]
[1760874097694,0.5262073,108110.0,108100.0,0.18737088]
[1760874098283,0.5262073,108110.0,108100.0,0.21518756]
[1760874099053,0.54357275,108110.0,108100.0,0.21518756]
[1760874100104,3.54357275,108110.0,108100.0,0.21518756]